Cogmind - Beta 16.1 @@@ ROGUE MODE // 2026.04.04 @ 21:32:08 Player: Milkman Result: Self-destructed Performance ------------- Evolutions (1) 500 Regions Visited (2) 400 Robots Destroyed (26) 130 Value Destroyed (656) 656 Prototype IDs (0) 0 Alien Tech Used (0) 0 Bonus (0) 0 TOTAL SCORE: 1686 Bonus ------- None Cogmind --------- Core Integrity 223/400 Matter 300/300 Energy 125/125 System Corruption 0% Temperature Cool (0) Movement Core (300) Ox5 Location -9/Materials Parts ------- > --- POWER (1) -------- Light Ion Engine > --- PROPULSION (3) --- (None) > --- UTILITY (3) ------ Medium Storage Unit Trap Scanner > --- WEAPON (2) ------- Hammer > --- INVENTORY (10) --- Improved Aluminum Leg Airjet Airjet Airjet Heat Sink Structural Scanner Seismic Detector Light EM Pulse Cannon Hammer Peak State ------------ > --- POWER ------------ Ion Engine > --- PROPULSION ------- Airjet Airjet Airjet > --- UTILITY ---------- Medium Storage Unit Trap Scanner Seismic Detector > --- WEAPON ----------- Datajack Hammer > --- INVENTORY -------- Ion Engine Light Ion Engine Aluminum Leg Aluminum Leg Aluminum Leg Airjet Heat Sink Structural Scanner [Rating: 18] Favorites ----------- Power Ion Engine Engine Ion Engine Propulsion Aluminum Leg Leg Aluminum Leg Wheel Wheel Hover Unit Airjet Utility Medium Storage Unit Device Trap Scanner Storage Medium Storage Unit Protection Light Armor Plating Weapon EM Pulse Gun Energy Gun EM Pulse Gun Impact Weapon Hammer Special Melee Weapon Datajack Build | -11 -10 -9 ------- Run | Yrd Mat Mat Slots Evolved 2 | . . 2 Power . | . . . Propulsion 1 | . . 1 Utility 1 | . . 1 Weapon . | . . . Parts Attached 22 | 6 7 9 Power 3 | 1 1 1 Engine 3 | 1 1 1 Core . | . . . Reactor . | . . . Propulsion 9 | 2 2 5 Treads . | . . . Leg 3 | . 2 1 Wheel 2 | 2 . . Hover 4 | . . 4 Flight . | . . . Utility 6 | 1 3 2 Device 3 | . 2 1 Storage 2 | 1 1 . Processor . | . . . Hackware . | . . . Protection 1 | . . 1 Artifact . | . . . Weapon 4 | 2 1 1 Energy Gun 2 | 2 . . Energy Cannon . | . . . Ballistic Gun . | . . . Ballistic Cannon . | . . . Launcher . | . . . Special Weapon . | . . . Impact Weapon 1 | . 1 . Slashing Weapon . | . . . Piercing Weapon . | . . . Special Melee Weapon 1 | . . 1 Unidentified Prototypes . | . . . Parts Lost 11 | . 4 7 Power 1 | . . 1 Propulsion 5 | . 1 4 Utility 2 | . 1 1 Weapon 3 | . 2 1 Highest Loss Streak 4 | . 2 4 To Critical Strikes . | . . . Average Backups 7 | 1 6 9 Power 1 | . 1 1 Propulsion 2 | 1 1 3 Utility 2 | . 1 2 Weapon . | . . 1 Tool/Special . | . . . Unused Backups 5 | . . 5 Power . | . . . Propulsion 1 | . . 1 Utility 2 | . . 2 Weapon 2 | . . 2 Tool/Special . | . . . Average Slot Usage (%) 94 | . 93 94 Engine 12 | . 14 10 Leg 20 | . 13 26 Wheel 6 | . 13 . Hover 3 | . . 5 Device 12 | . 11 14 Storage 12 | . 14 11 Protection 3 | . . 7 Energy Gun 10 | . 22 . Impact Weapon 7 | . 3 11 Special Melee Weapon 4 | . . 7 Peak Build Rating 18 | 6 7 18 Average Rating 9 | 3 6 12 On Entrance 4 | . 6 6 Avg Prop Armor Cover (%) . | . . . Naked Turns . | . . . Heaviest Build 23 | 14 20 23 Greatest Support 30 | 20 20 30 Greatest Overweight (x) 1 | 1 1 1 Average Overweight (x) . | . . . Largest Inventory Capacity 10 | 8 10 10 Average Capacity 9 | 7 8 10 Most Carried 10 | 5 9 10 Average Carried 7 | 2 6 9 Final Capacity 10 | 8 10 10 Final Carried 9 | 3 8 9 Class Distribution -------------------- 100% | Mutant Dominant Class ---------------- Mutant | -10/Materials Mutant | -9/Materials Resources | -11 -10 -9 ----------- Run | Yrd Mat Mat Matter Collected 512 | 184 163 165 Remotely . | . . . Salvage Created 790 | . 334 456 Parts 52 | . 32 20 Haulers Intercepted . | . . . Recyclers Shooed 1 | . 1 . Parts Field Recycled . | . . . Retrieved Matter . | . . . Parts Self-Destructed . | . . . Prevented . | . . . Parts Restored . | . . . Kills | -11 -10 -9 ------- Run | Yrd Mat Mat Combat Hostiles Destroyed 25 | . 13 12 Melee 6 | . 1 5 Guns 10 | . 10 . AOE 2 | . 2 . Classes Destroyed 4 | . 3 1 Watcher 1 | . 1 . Swarmer 12 | . 9 3 Grunt 8 | . 4 4 Sentry 5 | . . 5 Best Kill Streak 7 | . 7 5 Combat Bots Only 6 | . 6 5 Max Kills in Single Turn 2 | . 2 1 Gunslinging . | . . . Exploded 2 | . 2 . Melee 1 | . 1 1 Uniques/NPCs Destroyed . | . . . Combat | -11 -10 -9 -------- Run | Yrd Mat Mat Hostile Shots Fired 152 | . 63 89 Missed 46 | . 24 22 Hits 106 | . 39 67 Projectile 106 | . 39 67 Critical Strikes 4 | . . 4 Damage Taken 1184 | . 354 830 Core 232 | . 55 177 Absorbed by Shields . | . . . Regen/Repaired (Parts) 39 | . 12 27 Core Remaining (%) 89 | 100 78 . Volleys Fired 30 | . 30 . Largest 2 | . 2 . Hottest 80 | . 80 . Shots Fired 57 | . 57 . Gun 57 | . 57 . Cannon . | . . . Launcher . | . . . Special . | . . . Kinetic . | . . . Thermal . | . . . Explosive . | . . . Electromagnetic 57 | . 57 . Robot Hit Streak 5 | . 5 . Robot Miss Streak 8 | . 8 . Penetration Max . | . . . Secondary Targets 1 | . 1 . Max Gunslinging Chain 1 | . 1 . Shots Hit Robots 61 | . 26 35 Core Hits 21 | . 16 5 Critical Kills 2 | . . 2 Critical Parts Destroyed 7 | . . 7 Critical Strikes 9 | . . 9 Smash 9 | . . 9 Melee Attacks 41 | . 3 38 Impact 40 | . 3 37 Slashing . | . . . Piercing . | . . . Sneak Attacks 1 | . . 1 Combat Hostiles . | . . . Follow-up Attacks . | . . . Damage Inflicted 1193 | . 417 776 Guns 326 | . 326 . Cannons . | . . . Explosions 49 | . 49 . Melee 818 | . 42 776 Ramming . | . . . Kinetic . | . . . Thermal 49 | . 49 . Explosive . | . . . Electromagnetic 326 | . 326 . Impact 818 | . 42 776 Slashing . | . . . Piercing . | . . . Highest Corruption . | . . . Average Corruption . | . . . Corruption Purged . | . . . Corruption Blocked . | . . . Overload Shots . | . . . Overflow Damage 222 | . . 222 Projectiles . | . . . Explosions . | . . . Melee 222 | . . 222 Knockbacks 2 | . 1 1 Impact 2 | . 1 1 Kinetic . | . . . Secondary . | . . . Self-Inflicted Damage . | . . . Shots . | . . . Rammed . | . . . Targets Rammed . | . . . Kicked . | . . . Crushed . | . . . Highest Temperature 218 | . 218 13 Average Temperature 83 | . 86 9 Received Heat Transfer 417 | . 66 351 Effects 3 | . 3 . Interference 3 | . 3 . Siege Activations . | . . . Martial Activations . | . . . Shielding Activations . | . . . Robots Disrupted . | . . . Combat Hostiles . | . . . Robots Corrupted 7 | . . 7 Combat Hostiles 7 | . . 7 Parts Fried 7 | . . 7 Impact Corruptions 12 | . . 12 Robots Melted . | . . . Combat Hostiles . | . . . Parts Melted . | . . . Heat Transferred 50 | . 50 . Parts Sabotaged . | . . . Parts Stolen . | . . . Parts Stripped . | . . . Power Chain Reactions 1 | . 1 . Alert | -11 -10 -9 ------- Run | Yrd Mat Mat Maximum Alert Level . | . . . Low Security (%) 100 | 100 100 100 Level 1 . | . . . Level 2 . | . . . Level 3 . | . . . Level 4 . | . . . Level 5 . | . . . High Security . | . . . Max Security . | . . . Peak Influence 172 | . 172 113 Initial 59 | . . 59 Average 60 | . 72 56 Influence Increases 696 | . 376 320 Destroy 0b10 Robot/C 500 | . 260 240 Destroy 0b10 Robot/NC 5 | . 5 . Destroy Leader 132 | . 52 80 Successful Hack 11 | . 11 . Disable Machine 15 | . 15 . Destroy Structure 3 | . 3 . Lose Combat Pursuer 30 | . 30 . Influence Decreases 617 | . 234 383 Entered New Map 83 | . . 83 Time Decay 424 | . 194 230 Lost Part 110 | . 40 70 Squads Dispatched 4 | . 2 2 Investigation 3 | . 2 1 Extermination . | . . . Reinforcement 1 | . . 1 Assault . | . . . Garrison . | . . . Intercept . | . . . Searches Triggered . | . . . Construction Impeded . | . . . Haulers Reinforced . | . . . Active Scanning Responses . | . . . Cargo Convoy Interrupts . | . . . Stealth | -11 -10 -9 --------- Run | Yrd Mat Mat Distress Signals 4 | . 1 3 Communications Jammed . | . . . Distress Signals . | . . . Times Spotted 43 | . 18 25 Peak Tracking Total 9 | . 5 9 Tactical Retreats 2 | . 2 . Traps | -11 -10 -9 ------- Run | Yrd Mat Mat Traps Triggered 1 | . . 1 Indirectly . | . . . Trap Hack Attempts . | . . . Triggered . | . . . Disarmed . | . . . Reprogrammed . | . . . Reused . | . . . Traps Extracted . | . . . Installed . | . . . Triggered . | . . . Machines | -11 -10 -9 ---------- Run | Yrd Mat Mat Machines Disabled 1 | . 1 . Max in Single Turn 1 | . 1 . Machines Repaired . | . . . Machines Dismantled . | . . . Machines Sabotaged . | . . . Overloaded Fab Kills . | . . . Hacking | -11 -10 -9 --------- Run | Yrd Mat Mat Machines Accessed 6 | . 4 2 Terminals 3 | . 3 . Fabricators . | . . . Repair Stations 2 | . 1 1 Recycling Units . | . . . Scanalyzers 1 | . . 1 Garrison Access . | . . . Total Hacks 24 | . 15 9 Successful 17 | . 9 8 Failed 7 | . 6 1 Catastrophic . | . . . Database Lockouts . | . . . Manual . | . . . Terminals 12 | . 12 . Fabricators . | . . . Repair Stations 7 | . 3 4 Recycling Units . | . . . Scanalyzers 5 | . . 5 Garrison Access . | . . . Terminal Hacks 6 | . 6 . Record 3 | . 3 . Locate Traps 2 | . 2 . Dispatch Records 1 | . 1 . Fabricator Hacks . | . . . Repair Station Hacks 7 | . 3 4 Scan Component 4 | . 2 2 Repair 3 | . 1 2 Recycling Unit Hacks . | . . . Scanalyzer 4 | . . 4 Retrieve Study 4 | . . 4 Garrison Access Hacks . | . . . Unauthorized Hacks . | . . . Terminals . | . . . Fabricators . | . . . Repair Stations . | . . . Recycling Units . | . . . Scanalyzers . | . . . Garrison Access . | . . . Data Cores Recovered . | . . . Used . | . . . Hacking Detections 5 | . 4 1 Full Trace Events 4 | . 3 1 Feedback Events . | . . . Feedback Blocked . | . . . Robot Schematics Acquired . | . . . Robots Built . | . . . Authchips . | . . . Time . | . . . Total Robot Build Rating . | . . . Part Schematics Acquired . | . . . Parts Built . | . . . Authchips . | . . . Time . | . . . Total Part Build Rating . | . . . Part Studies Acquired 2 | . . 2 Parts Repaired 3 | . 1 2 Time 90 | . 26 64 Parts Recycled . | . . . Recycled Matter . | . . . Retrieved Matter . | . . . Retrieved Components . | . . . Parts Scanalyzed . | . . . Part Schematics Acquired . | . . . Parts Damaged . | . . . Bothacking | -11 -10 -9 ------------ Run | Yrd Mat Mat Used RIF Installer . | . . . Robots Hacked . | . . . Non-combat . | . . . Combat . | . . . Robot Hacks Applied . | . . . Relay Couplers Released . | . . . Fabnet Peak Effective % . | . . . Robots Rewired . | . . . Allies Hacked . | . . . Hacks Repelled . | . . . Allies | -11 -10 -9 -------- Run | Yrd Mat Mat Total Allies . | . . . Largest Group . | . . . Highest-Rated Group . | . . . Highest-Rated Ally . | . . . Total Orders . | . . . Ally Attacks . | . . . Total Damage . | . . . Kills . | . . . Allies Corrupted . | . . . Allies Melted . | . . . Intel | -11 -10 -9 ------- Run | Yrd Mat Mat Active Infowar (turns) 850 | . 355 495 Sensors 169 | . 169 . Traps 488 | . . 488 Seismic 330 | . 186 144 Robot Analysis Total . | . . . Derelict Logs Recovered . | . . . Drone Launches . | . . . Drone Recoveries . | . . . Exploration | -11 -10 -9 ------------- Run | Yrd Mat Mat Turns Passed 996 | 61 440 495 Spaces Moved 536 | 63 218 255 Core 19 | 19 . . Treads . | . . . Legs 280 | . 115 165 Wheels 147 | 44 103 . Hover 90 | . . 90 Flight . | . . . Fastest Speed 50 | 50 80 52 Average Speed 96 | 74 101 97 Slowest Speed 190 | 100 120 190 Overloaded Moves . | . . . Propulsion Burnouts . | . . . Robots Hopped . | . . . Potential Cave-ins . | . . . Cave-ins Triggered . | . . . Exploration Rate (%) 23 | 3 42 24 Regions Visited 2 Branch Regions . Pre-discovered Areas . | . . . Known Exits Taken . | . . . Unknown Exits Taken 2 | 1 1 . Scrap Searched . | . . . Spaces Dug . | . . . Terrain Destroyed 3 | . 3 . Melee . | . . . Projectile . | . . . AOE 3 | . 3 . Terrain Rammed . | . . . Walls Destroyed . | . . . Machines Disabled . | . . . Actions | -11 -10 -9 --------- Run | Yrd Mat Mat Total 881 | 77 372 432 Wait 212 | . 103 109 Move 534 | 62 217 255 Hop . | . . . Pick Up 29 | 9 10 10 Fast Attach 1 | . . 1 Attach 16 | 6 5 5 Detach . | . . . Swap 15 | . 4 11 Drop 3 | . . 3 Fire 30 | . 30 . Melee 41 | . 3 38 Ram . | . . . Kick . | . . . Crush . | . . . Escape Stasis . | . . . Rewire . | . . . Trap . | . . . Miscellaneous . | . . . Route ------- -11/Scrapyard -10/Materials (discovered 2 exits: *Mat / [*Min]) -9/Materials (discovered 1 exit: [*Min]) History --------- Turn | Location | Event 17 | -11/Scrapyard | Discovered new exit (range 16) 62 | -11/Scrapyard | Entered Materials 210 | -10/Materials | Repaired Wheel 258 | -10/Materials | Discovered new exit (range 11) 320 | -10/Materials | Build established: Mutant 424 | -10/Materials | Discovered new exit (range 13) 502 | -10/Materials | Entered another Materials area 502 | -9/Materials | Evolved 2 slots: Propulsion x1, Utility x1 731 | -9/Materials | Repaired Datajack 770 | -9/Materials | Repaired Airjet 825 | -9/Materials | Discovered new exit (range 8) 997 | -9/Materials | Self-destructed Last Messages --------------- K-01 Serf collects debris. ALERT: Hostiles spotted, dispatching reinforcements to Terminal M001. Critical hit (Burn: +37). Lgt. Armor Plating destroyed. W-16 Scout sends out distress signal. Destroyed Heat Sink. Y-45 Defender system corrupted by crushing effect. Critical hit (Burn: +37). Aluminum Leg destroyed. W-16 Scout sends out distress signal. Aluminum Leg destroyed. Y-45 Defender suffers critical hit (Smash). Destroyed Heat Sink. Y-45 Defender system corrupted by crushing effect. Y-45 Defender system terminally corrupted. Lgt. Treads fried. Imp. Ion Engine fried. Map ----- +----------------------------------------------------+ | ??????????????# "" ## #??# #??????######??? | | ??????????????#######+#### #??#% #????? #??? | | ????????????????????# ####+#### #???==! #???? | | ????????????????????# # # #?? =!! #???? | | ????????????????????# # # ## =!! #???? | | ????????????????????# # [#%%! / #???? | | ????????????????????# # =+% ## #???? | | ????????????????????# # ] =# #??? #???? | | ????????????????????# ######### ##???? #???? | | ???????????????????## ######## ##+###+####???? | | ???????????????????# #?????? | | ???????????????????# #?????? | | ?????????????????? +?????? | | ???????????????????## #### ### ##### #?????? | | ????????????????????? ??##+#####+####???? #?????? | | ????????????????????? ??# #????? #????? | | ????????????????####?+??# #????????????? | | ????????????????# ??# #????????????? | | ????????????????#" ??# #????????????? | | ????????????????#T ][??# #????????????? | | ????????????????#" ] ??# ] #????????????? | | ????????????????# ?# #????????????? | | ????????????????# ! ?#Y###########????????????? | | ????????????????# # #### ##### ???????? | | ????????????????# """ # w ??????? | | ????????????????# """%g@ ??????? | | ????????????????#k """ # w s ??????? | | ????????????????+ # s ###?????????? | | ????????????????#### ##?####### #???????????? | | ???????????????????#???????????? #???????????? | | ????????????????????????????????? #?????????? | | ?????????????????????????????????? #?????????? | | ???????????????????????????????????"" ?#?????????? | | ?????????????????????????????????????????????????? | | ?????????????????????????????????????????????????? | | ?????????????????????????????????????????????????? | | ?????????????????????????????????????????????????? | | ?????????????????????????????????????????????????? | | ?????????????????????????????????????????????????? | | ?????????????????????????????????????????????????? | | ?????????????????????????????????????????????????? | | ?????????????????????????????????????????????????? | | ?????????????????????????????????????????????????? | | ?????????????????????????????????????????????????? | | ?????????????????????????????????????????????????? | | ?????????????????????????????????????????????????? | | ?????????????????????????????????????????????????? | | ?????????????????????????????????????????????????? | | ?????????????????????????????????????????????????? | | ?????????????????????????????????????????????????? | +----------------------------------------------------+ Best States ------------- Heat Dissipation 28 Energy Generation 10 Energy Capacity 250 Matter Stores 300 Matter Capacity 300 Sight Range 16 Robot Scan Range 14 Terrain Scan Density 10 Armor Coverage 150 Evasion (%) 55 Item Schematics ----------------- None Robot Schematics ------------------ None Fabricated ------------ Nothing Repaired ---------- Wheel | 70% | -10/Materials Datajack | 10% | -9/Materials Airjet | 55% | -9/Materials Studied --------- Hammer | -9/Materials | Hacked Datajack | -9/Materials | Hacked Alien Tech Used ----------------- None Achievements -------------- Part-time Mechanic Challenges ------------ None Game ------ Seed FluxImprinterBarrier Manual? 0 Play Time 00:20:37 Cumulative 2.8 hours Start 2026.04.04 @ 20:42:40 End 2026.04.04 @ 21:32:08 Sessions 1 Manual Loads 0 Difficulty Rogue Special Mode None Game No. 5 Rogue 5 Adventurer 0 Explorer 0 Win Type - Total 0 Types 0/0/0/0/0/0/0/0/0/0 Lore% 4 Gallery% 7 Achievement% 7 Wizard Run 0 Options --------- Layout 1 ASCII 0 Keyboard 0 Movement Mouse Keybinds 0 Fullscreen 1 Font 24/Smallcaps Map View 50x40 Zoom Use 0% Tactical HUD 0 Map Filters NONE Filters NONE Steam 0 RUN: e5fd6ef3-fb80-486d-80ab-ff94d559ac0d